bitfinex/quotes_ETHUSD_20250403
["timestamp","ask_amount","ask_price","bid_price","bid_amount"]
[1743697046368,0.02914238,1784.4,1784.3,6.42774]
[1743697046757,2.38e-06,1784.4,1784.3,6.48377744]
[1743697047071,1.23844814,1785.0,1784.9,5.60255]
[1743697047576,4.23844814,1785.0,1784.9,5.60255]
[1743697048068,0.42544814,1785.0,1784.9,5.60255]
[1743697048273,6.01,1785.2,1785.1,5.60192]
[1743697048672,3.8097,1785.1,1784.4,0.7768]
[1743697048906,3.0,1784.8,1784.6,5.60331]
[1743697049184,3.0,1785.0,1784.8,11.20527]
[1743697049388,3.0,1785.0,1784.9,5.60255]
[1743697049584,12.6917,1785.1,1785.0,5.60224]
[1743697049884,0.42187788,1785.2,1785.1,5.60192]
[1743697050057,6.01,1785.5,1785.4,5.60098]
[1743697050254,6.01,1785.5,1785.3,5.60129]
[1743697050255,5.3565126,1785.5,1785.3,5.60129]
[1743697050449,4.8065126,1785.5,1785.3,11.20241]
[1743697050654,4.8065126,1785.5,1785.2,5.60153]
[1743697050854,4.8065126,1785.5,1785.2,5.60142]
[1743697051168,4.8065126,1785.5,1785.2,5.60158]
[1743697051365,4.8065126,1785.5,1785.3,5.60129]
[1743697051561,3.0,1785.4,1785.3,5.60129]
[1743697051767,3.41309087,1785.4,1785.3,5.60129]
[1743697051970,3.410393,1785.4,1785.2,5.60158]
[1743697052461,6.6775,1785.3,1785.0,5.60214]
[1743697052670,11.4840126,1785.3,1785.0,5.60214]
[1743697052879,17.0854126,1785.3,1785.0,5.60214]
[1743697053480,11.4840126,1785.3,1785.0,5.60207]
[1743697053986,3.410393,1785.4,1785.3,5.60129]
[1743697054700,6.01,1785.6,1785.4,5.60082]
[1743697054863,11.6220126,1785.7,1785.4,5.60071]
[1743697055063,11.6220126,1785.7,1785.5,5.60053]
[1743697055791,3.0,1785.6,1785.5,5.60053]
[1743697056909,40.352,1785.8,1785.7,5.60004]
[1743697057207,6.01001,1785.9,1785.8,5.59973]
[1743697057409,1e-05,1785.9,1785.8,5.59973]
[1743697059268,0.42020324,1785.9,1785.8,5.59973]
[1743697059473,1e-05,1785.9,1785.8,5.59973]
[1743697061091,1e-05,1785.9,1785.8,6.801347]
[1743697061294,1e-05,1785.9,1785.8,6.85733983]
[1743697061495,1e-05,1785.9,1785.8,7.617747]
[1743697062191,1e-05,1785.9,1785.8,7.79274728]
[1743697062358,1e-05,1785.9,1785.8,8.34274728]
[1743697062562,0.05,1786.9,1786.8,5.59659]
[1743697064490,0.05,1786.9,1786.8,7.5521873]
[1743697064692,40.34,1787.3,1787.2,5.59534]
[1743697065191,0.755,1787.5,1787.2,5.59534]
[1743697065503,0.755,1787.5,1787.3,5.59484]
[1743697065675,3.755,1787.5,1787.2,11.19029]
[1743697065872,3.755,1787.5,1787.2,5.59507]
[1743697066174,3.755,1787.5,1787.2,11.19027]
[1743697066381,8.5615126,1787.5,1787.2,5.59521]
[1743697066675,3.0,1787.2,1787.0,5.59569]
[1743697066886,0.42875491,1787.3,1787.2,5.59522]
[1743697067095,0.34287549,1787.3,1787.2,5.59522]
[1743697067773,3.0,1787.4,1787.3,5.59503]
[1743697068190,5.5615126,1787.5,1787.3,5.59503]
[1743697068191,3.0,1787.5,1787.4,5.59471]
[1743697068491,3.0,1787.6,1787.4,5.59471]
[1743697068891,3.0,1787.6,1787.3,11.18986]
[1743697069181,14.45809,1787.6,1787.2,5.59529]
[1743697069499,4.8065126,1787.5,1787.2,5.59521]
[1743697069807,4.8065126,1787.5,1787.2,11.19039]
[1743697070005,4.8065126,1787.5,1787.3,5.59484]
[1743697070374,4.8065126,1787.5,1787.4,5.59471]
[1743697070781,0.42539706,1787.6,1787.5,5.5944]
[1743697070979,0.8146,1787.9,1787.5,5.5944]
[1743697071179,0.8146,1787.9,1787.8,5.59346]
[1743697072275,0.45969913,1787.9,1787.8,5.59346]
[1743697072475,3.45969913,1787.9,1787.8,5.59346]
[1743697074412,3.45969913,1787.9,1787.7,5.59361]
[1743697074605,3.45969913,1787.9,1787.8,5.59346]
[1743697074800,3.05,1787.9,1787.8,5.59346]
[1743697075001,0.05,1787.9,1787.8,6.36446]
[1743697076080,0.05,1787.9,1787.8,7.560267]
[1743697076594,0.05,1787.9,1787.8,7.61619021]
[1743697077108,0.05,1787.9,1787.8,7.560267]
[1743697077506,0.05,1787.9,1787.8,5.59346]
[1743697077720,3.4760572,1787.9,1787.7,5.59361]
[1743697078096,3.05,1787.9,1787.7,5.59361]
[1743697078517,3.05,1787.9,1787.5,5.59435]
[1743697078518,3.0,1787.7,1787.5,5.59435]
[1743697078719,3.0,1787.7,1787.5,11.18865]
[1743697078881,3.78065126,1787.7,1787.5,11.18865]
[1743697079080,3.78065126,1787.7,1787.3,0.7709]
[1743697079081,3.0,1787.5,1787.3,5.59486]
[1743697079817,8.86,1787.5,1787.2,11.1905]
[1743697079981,8.86,1787.5,1787.2,5.59517]
[1743697080316,3.0,1787.3,1787.2,5.59517]
[1743697080692,0.02914476,1787.3,1787.2,5.59517]
[1743697082541,0.02914476,1787.3,1787.2,5.65112161]
[1743697082825,0.02914476,1787.3,1787.2,8.05998616]
[1743697083317,40.294,1787.8,1787.7,5.59377]
[1743697083500,0.05,1787.9,1787.8,5.59346]
[1743697083820,0.05,1787.9,1787.7,11.18743]
[1743697084026,0.05,1787.9,1787.8,5.59346]
[1743697084190,0.05,1787.9,1787.8,6.712172]
[1743697084394,0.05,1787.9,1787.8,6.76810247]
[1743697084615,0.05,1787.9,1787.8,6.712172]
[1743697085095,0.05,1787.9,1787.8,5.59346]
[1743697086004,0.46518583,1787.9,1787.8,5.59346]
[1743697087227,0.05,1787.9,1787.8,6.47229097]
[1743697087416,0.05,1787.9,1787.8,6.41636]
[1743697088145,0.05,1787.9,1787.8,6.47228378]
[1743697088323,0.05,1787.9,1787.8,7.62295238]
[1743697088726,1e-05,1787.9,1787.8,7.67887181]
[1743697088938,1e-05,1787.9,1787.8,7.62295238]
[1743697089303,1e-05,1787.9,1787.8,7.79776462]
[1743697090237,1e-05,1787.9,1787.8,8.34776462]
[1743697090929,1e-05,1787.9,1787.8,8.62749305]
[1743697091130,1e-05,1787.9,1787.8,8.07749305]
[1743697091306,1e-05,1787.9,1787.8,8.13340861]
[1743697091912,1e-05,1787.9,1787.8,8.07749305]
[1743697092639,1e-05,1787.9,1787.8,6.04800067]
[1743697093510,1e-05,1787.9,1787.8,5.76827224]
[1743697094735,3.00001,1787.9,1787.8,5.76827224]
[1743697095631,3.41865348,1787.9,1787.8,5.76827224]
[1743697095835,15.68280348,1787.9,1787.7,0.27972843]
[1743697096060,5.6215126,1787.8,1787.7,0.27972843]
[1743697096241,0.815,1787.8,1787.7,5.59377]
[1743697096442,1e-05,1787.9,1787.8,5.59346]
[1743697097039,0.77301,1787.9,1787.8,5.59346]
[1743697097262,1.19796033,1787.9,1787.7,5.59377]
[1743697097449,1.19796033,1787.9,1787.7,11.18738]
[1743697097851,1.19796033,1787.9,1787.8,5.59346]
[1743697098339,6.00447293,1787.9,1787.7,5.59369]
[1743697098774,6.00447293,1787.9,1787.8,5.59346]
[1743697099178,6.00447293,1787.9,1787.7,5.59369]
[1743697099385,6.6531,1787.8,1787.5,5.87410843]
[1743697099579,8.6000126,1787.7,1787.5,5.87395843]
[1743697099864,3.7935,1787.7,1787.5,5.59423]
[1743697100039,9.5649626,1787.7,1787.5,5.59423]
[1743697100432,9.5649626,1787.7,1787.4,11.18932]
[1743697100639,4.75845,1787.7,1787.6,5.59409]
[1743697102058,4.75845,1787.7,1787.4,5.59471]
[1743697102409,0.7805,1787.5,1787.2,5.87512085]
[1743697102553,1.40784887,1787.5,1787.4,5.59471]
[1743697102752,0.7805,1787.5,1787.3,5.59501]
[1743697103371,0.7805,1787.5,1787.3,11.18986]
[1743697103570,0.7805,1787.5,1787.3,5.59485]
[1743697103886,0.7805,1787.5,1787.2,11.19045]
[1743697104088,0.8044,1787.3,1787.1,5.5956]
[1743697104389,3.0,1787.2,1787.1,5.5956]
[1743697105690,3.0,1787.4,1787.3,5.59503]
[1743697106003,3.7949,1787.5,1787.3,5.59503]
[1743697106169,3.7949,1787.5,1787.4,5.59471]
[1743697106993,5.856,1787.6,1787.5,5.5944]
[1743697107319,5.856,1787.6,1787.4,5.5946]
[1743697107511,11.4502,1787.6,1787.2,5.59516]
[1743697107726,7.8065126,1787.5,1787.3,5.59485]
[1743697108225,3.41643109,1787.5,1787.4,5.59471]
[1743697108571,0.41643109,1787.5,1787.4,5.59471]
[1743697108770,3.0,1787.6,1787.4,11.18942]
[1743697109029,3.0,1787.6,1787.4,5.59471]
[1743697109188,3.0,1787.6,1787.4,5.59457]
[1743697109524,40.285,1787.8,1787.6,5.5938]
[1743697109708,1e-05,1787.9,1787.8,5.59346]
[1743697110323,1e-05,1787.9,1787.8,6.794123]
[1743697110690,1e-05,1787.9,1787.8,5.59346]
[1743697113396,1e-05,1787.9,1787.8,5.64939134]
[1743697113618,1e-05,1787.9,1787.8,5.59346]
[1743697113813,1e-05,1787.9,1787.8,5.64938664]
[1743697114023,1e-05,1787.9,1787.8,5.59346]
[1743697114334,1e-05,1787.9,1787.8,6.794123]
[1743697116205,1e-05,1787.9,1787.8,7.62174342]
[1743697116405,1e-05,1787.9,1787.8,7.565823]
[1743697118479,1e-05,1787.9,1787.8,7.62174504]
[1743697118775,1e-05,1787.9,1787.8,7.565823]
[1743697119278,1e-05,1787.9,1787.8,8.115823]
[1743697119435,1e-05,1787.9,1787.8,7.565823]
[1743697121032,1e-05,1787.9,1787.8,10.565823]
[1743697121637,1e-05,1787.9,1787.8,9.36516]
[1743697122037,1e-05,1787.9,1787.8,9.53997164]
[1743697122235,1e-05,1787.9,1787.8,6.53997164]
[1743697122483,1e-05,1787.9,1787.8,5.76827164]
[1743697123764,1e-05,1787.9,1787.8,5.59346]
[1743697124256,1e-05,1787.9,1787.8,6.76810551]
[1743697125684,1e-05,1787.9,1787.8,7.473783]
[1743697126042,1e-05,1787.9,1787.8,6.712183]
[1743697126583,1e-05,1787.9,1787.8,10.482083]
[1743697126988,1e-05,1787.9,1787.8,7.482083]
[1743697127169,1e-05,1787.9,1787.8,13.334083]
[1743697127682,1e-05,1787.9,1787.8,13.50888999]
[1743697129569,1e-05,1787.9,1787.8,5.76826699]
[1743697130542,0.81601,1787.9,1787.8,5.76826699]
[1743697130746,3.81601,1787.9,1787.7,11.18742]
[1743697130949,3.81601,1787.9,1787.7,11.18732]
[1743697131277,3.81601,1787.9,1787.7,5.59365]
[1743697131471,3.81601,1787.9,1787.8,5.59346]
[1743697131851,4.2270764,1787.9,1787.8,5.59346]
[1743697132466,5.1304353,1787.9,1787.8,5.59346]
[1743697133368,5.1304353,1787.9,1787.7,11.18729]
[1743697133855,5.1304353,1787.9,1787.8,5.59346]
[1743697135509,5.1304353,1787.9,1787.7,5.59364]
[1743697135790,0.7525,1787.7,1787.6,5.59409]
[1743697136155,10.0145764,1787.9,1787.8,5.59346]
[1743697137453,4.1635764,1787.9,1787.8,5.59346]
[1743697138199,3.4110764,1787.9,1787.8,5.59346]
[1743697138998,3.00001,1787.9,1787.8,5.59346]
[1743697139148,1e-05,1787.9,1787.8,5.59346]
[1743697139988,1e-05,1787.9,1787.8,5.64938928]
[1743697140152,1e-05,1787.9,1787.8,6.71776293]
[1743697140343,1e-05,1787.9,1787.8,5.59346]
[1743697140547,1e-05,1787.9,1787.8,6.44578921]
[1743697141176,1e-05,1787.9,1787.8,6.38986]
[1743697141554,1e-05,1787.9,1787.8,5.59346]
[1743697141978,1e-05,1787.9,1787.8,5.76829584]
[1743697142371,1e-05,1787.9,1787.8,6.90448942]
[1743697143363,1e-05,1787.9,1787.8,5.76829584]
[1743697143563,1e-05,1787.9,1787.8,6.56469584]
[1743697145756,1e-05,1787.9,1787.8,5.76829584]
[1743697146674,1e-05,1787.9,1787.8,5.8242215]
[1743697146990,1e-05,1787.9,1787.8,6.56099584]
[1743697147154,1e-05,1787.9,1787.8,6.80892358]
[1743697148198,0.77381,1787.9,1787.8,5.59346]
[1743697148693,1e-05,1787.9,1787.8,5.64939192]
[1743697148868,1e-05,1787.9,1787.8,5.59346]
[1743697149378,5.5626226,1787.9,1787.8,5.59346]
[1743697149581,8.5626226,1787.9,1787.8,5.59346]
[1743697149878,9.41888486,1787.9,1787.8,5.59346]
[1743697150667,8.5626226,1787.9,1787.8,5.59346]
[1743697152001,8.5626226,1787.9,1787.7,11.18729]
[1743697152171,8.5626226,1787.9,1787.8,5.59346]
[1743697152581,3.75611,1787.9,1787.8,5.59346]
[1743697152902,3.75611,1787.9,1787.6,5.59407]
[1743697152903,8.59357,1787.8,1787.4,5.8744489]
[1743697153069,3.7775,1787.5,1787.4,5.8744489]
[1743697153604,3.7775,1787.5,1787.4,0.2797889]
[1743697153605,7.1415,1787.5,1787.4,0.2797889]
[1743697153910,7.1415,1787.5,1787.3,5.59488]
[1743697154279,3.7775,1787.5,1787.3,5.59488]
[1743697154474,3.7775,1787.5,1787.3,5.59487]
[1743697154681,4.51044187,1787.5,1787.3,5.59487]
[1743697155005,4.51044187,1787.5,1787.4,5.59471]
[1743697155205,4.51044187,1787.5,1787.2,5.5953]
[1743697155379,3.0,1787.3,1787.1,5.59563]
[1743697155567,3.0,1787.1,1786.9,11.19237]
[1743697155771,3.0,1787.1,1787.0,5.59597]
[1743697155975,3.0,1787.1,1786.9,5.59614]
[1743697156621,3.0,1787.1,1786.9,5.59611]
[1743697156783,3.0,1787.1,1787.0,5.59597]
[1743697157171,3.41894516,1787.3,1787.1,5.59565]
[1743697157696,8.22545776,1787.3,1787.0,11.19174]
[1743697157904,0.8166,1787.2,1787.1,5.59565]
[1743697158898,6.41205,1787.2,1786.9,5.59623]
[1743697159216,3.8226,1787.0,1786.7,5.59687]
[1743697159372,3.0,1786.8,1786.7,5.59687]
[1743697159572,3.796,1786.8,1786.7,5.59687]
[1743697159771,3.0,1786.8,1786.7,5.59687]
[1743697160701,6.806,1787.2,1786.8,5.59646]
[1743697160908,3.0,1787.1,1787.0,5.59597]
[1743697161207,0.796,1787.2,1787.1,5.59565]
[1743697161371,1.39814578,1787.2,1787.1,5.59565]
[1743697161710,4.39814578,1787.2,1787.1,5.59565]
[1743697162113,3.796,1787.2,1787.1,5.59565]
[1743697162411,0.41894516,1787.3,1787.2,5.59534]
[1743697162577,3.7542,1787.4,1787.2,5.59534]
[1743697162778,3.7542,1787.4,1787.3,5.59503]
[1743697163375,0.7542,1787.4,1787.2,5.59516]
[1743697163889,0.7542,1787.4,1787.2,11.19036]
[1743697164079,0.7542,1787.4,1787.3,5.59503]
[1743697164515,0.41236608,1787.4,1787.3,5.59503]
[1743697164719,0.7628,1787.6,1787.5,5.5944]
[1743697166029,51.1005126,1787.7,1787.6,5.59409]
[1743697166030,40.284,1787.7,1787.6,5.59409]
[1743697166411,40.284,1787.7,1787.5,11.18863]
[1743697166710,40.284,1787.7,1787.6,5.59409]
[1743697167497,40.284,1787.7,1787.5,5.59423]
[1743697167911,0.755,1787.6,1787.3,5.595]
[1743697168082,4.8065126,1787.5,1787.3,11.19]
[1743697168838,4.8065126,1787.5,1787.3,5.595]
[1743697168987,4.8065126,1787.5,1787.2,5.59514]
[1743697169187,3.364,1787.4,1787.3,5.59497]
[1743697169406,3.364,1787.4,1787.1,5.59565]
[1743697169712,8.9941126,1787.3,1787.1,5.59553]
[1743697169905,8.9941126,1787.3,1787.1,11.19108]
[1743697170111,8.9941126,1787.3,1787.1,5.59553]
[1743697170490,4.1876,1787.3,1787.2,5.59534]
[1743697171295,3.0,1787.4,1787.3,5.59503]
[1743697171922,7.33177503,1787.4,1787.3,5.59503]
[1743697172928,3.0,1787.4,1787.3,5.59503]
[1743697173117,3.0,1787.6,1787.4,5.59471]
[1743697173308,7.33177503,1787.6,1787.4,5.59471]
[1743697173627,7.33177503,1787.6,1787.5,5.5944]
[1743697175014,7.33177503,1787.6,1787.4,11.1893]
[1743697175321,7.33177503,1787.6,1787.5,5.5944]
[1743697175727,3.0,1787.6,1787.5,5.5944]
[1743697178034,3.0,1787.7,1787.5,11.18867]
[1743697178345,3.0,1787.7,1787.6,5.59409]
[1743697178844,3.0,1787.7,1787.5,5.59427]
[1743697179052,3.0,1787.7,1787.6,5.59409]
[1743697179613,3.0,1787.8,1787.7,5.59374]
[1743697180256,40.29401,1787.9,1787.7,6.795299]
[1743697180479,40.29401,1787.9,1787.8,5.59346]
[1743697181253,1e-05,1787.9,1787.8,5.59346]
[1743697181460,1e-05,1787.9,1787.8,6.45748864]
[1743697181657,1e-05,1787.9,1787.8,6.45748126]
[1743697181812,1e-05,1787.9,1787.8,7.72683803]
[1743697182009,1e-05,1787.9,1787.8,7.78275834]
[1743697182214,1e-05,1787.9,1787.8,7.72683803]
[1743697182658,1e-05,1787.9,1787.8,7.9016835]
[1743697186727,1e-05,1787.9,1787.8,7.95759815]
[1743697186944,1e-05,1787.9,1787.8,7.9016835]
[1743697187128,1e-05,1787.9,1787.8,7.95759814]
[1743697188018,1e-05,1787.9,1787.8,7.9016835]
[1743697188214,1e-05,1787.9,1787.8,8.4516835]
[1743697190351,1e-05,1787.9,1787.8,7.9016835]
[1743697190920,1e-05,1787.9,1787.8,13.7456835]
[1743697195150,1e-05,1787.9,1787.8,19.6346835]
[1743697195350,1e-05,1787.9,1787.8,13.7456835]
[1743697197767,1e-05,1787.9,1787.8,7.9016835]
[1743697198736,1e-05,1787.9,1787.8,6.9746561]
[1743697198960,1e-05,1787.9,1787.8,5.64937807]
[1743697200437,1e-05,1787.9,1787.8,6.45777807]
[1743697200636,1e-05,1787.9,1787.8,6.45777528]
[1743697200874,1e-05,1787.9,1787.8,6.40186]
[1743697201172,1e-05,1787.9,1787.8,6.5766702]
[1743697201338,1e-05,1787.9,1787.8,7.94183675]
[1743697201870,1e-05,1787.9,1787.8,13.83875204]
[1743697202070,1e-05,1787.9,1787.8,7.94183675]
[1743697202268,1e-05,1787.9,1787.8,13.83875127]
[1743697202472,1e-05,1787.9,1787.8,18.6585275]
[1743697202686,1e-05,1787.9,1787.8,21.6585275]
[1743697203346,1e-05,1787.9,1787.8,13.78283675]
[1743697203871,1e-05,1787.9,1787.8,14.06253307]
[1743697204376,1e-05,1787.9,1787.8,20.77253307]
[1743697204541,1e-05,1787.9,1787.8,20.22253307]
[1743697208172,1e-05,1787.9,1787.8,7.41313307]
[1743697208497,1e-05,1787.9,1787.8,11.88796652]
[1743697208978,1e-05,1787.9,1787.8,6.04796652]
[1743697209846,1e-05,1787.9,1787.8,5.59346]
[1743697210595,1e-05,1787.9,1787.8,5.64938236]
[1743697211490,1e-05,1787.9,1787.8,5.59346]
[1743697211645,7.32570075,1787.9,1787.7,0.1748102]
[1743697211982,3.8291,1787.6,1787.3,5.5948]
[1743697212287,0.8291,1787.3,1787.2,5.59518]
[1743697213056,0.8291,1787.3,1787.2,5.65112978]
[1743697213263,0.8291,1787.3,1787.2,5.59518]
[1743697215589,1.24694682,1787.3,1787.2,5.59518]
[1743697215792,1.80421058,1787.3,1787.2,5.59518]
[1743697216284,9.37935,1787.2,1786.3,6.37355]
[1743697216473,8.15189075,1786.8,1786.7,5.59689]
[1743697216874,0.8262,1786.7,1786.5,5.59751]
[1743697217186,0.8262,1786.5,1786.4,5.59762]
[1743697217387,4.34138908,1786.5,1786.2,5.59845]
[1743697217573,3.8262,1786.2,1786.0,11.19784]
[1743697217775,7.32569075,1786.1,1786.0,11.19784]
[1743697217988,3.0,1786.1,1786.0,11.19784]
[1743697218515,0.8262,1786.2,1786.1,5.59879]
[1743697219820,1.34138908,1786.2,1786.1,5.59879]
[1743697220120,0.8262,1786.2,1786.0,5.59891]
[1743697220416,0.8262,1786.2,1786.0,5.59887]
[1743697220619,1.24308124,1786.2,1786.0,5.59887]
[1743697220797,1.24308124,1786.2,1786.1,5.59879]
[1743697221172,1.24308124,1786.2,1786.0,5.59887]
[1743697221371,4.24308124,1786.2,1786.0,5.59887]
[1743697221597,0.42430812,1786.1,1785.9,5.59939]
[1743697221911,3.7833,1786.0,1785.8,5.59952]
[1743697222067,0.7833,1786.0,1785.9,5.59941]
[1743697226119,0.7833,1786.0,1785.6,5.60014]
[1743697226324,3.7827,1785.8,1785.5,5.60066]
[1743697226614,4.80392225,1785.9,1785.5,5.60049]
[1743697226615,3.7827,1785.6,1785.5,5.60049]
[1743697226844,3.7827,1785.6,1785.4,5.60096]
[1743697226971,3.7827,1785.6,1785.5,5.60067]
[1743697228604,3.7827,1785.6,1785.4,5.60083]
[1743697228804,3.7827,1785.6,1785.4,5.6009]
[1743697229011,0.37827,1785.5,1785.4,5.6009]
[1743697230223,0.7827,1785.6,1785.5,5.60067]
[1743697230519,3.7827,1785.6,1785.5,5.60067]
[1743697230721,9.6011,1785.9,1785.8,5.59957]
[1743697230885,3.7581,1785.9,1785.8,5.59957]
[1743697231085,0.7581,1786.2,1786.1,5.59879]
[1743697231280,1.41821,1786.2,1786.1,5.59879]
[1743697231822,1.1798463,1786.2,1786.1,5.59879]
[1743697232281,1.1798463,1786.2,1786.0,5.59897]
[1743697232485,4.1798463,1786.2,1786.0,11.19789]
[1743697232804,4.1798463,1786.2,1786.0,5.59892]
[1743697233740,4.1798463,1786.2,1786.1,5.59879]
[1743697235342,4.1798463,1786.2,1785.9,5.59936]
[1743697235526,3.8254,1786.0,1785.7,5.60003]
[1743697235732,5.844,1785.9,1785.7,5.60003]
[1743697236038,3.7955,1785.8,1785.6,11.20051]
[1743697236206,3.7955,1785.8,1785.7,5.60004]
[1743697237216,3.0,1785.8,1785.7,5.60004]
[1743697237818,0.8112,1786.0,1785.9,5.59941]
[1743697238440,1.49332,1786.0,1785.9,5.59941]
[1743697238643,4.49332,1786.0,1785.9,5.59941]
[1743697239017,0.7533,1785.7,1785.6,5.60017]
[1743697239232,5.55722225,1785.7,1785.4,5.60087]
[1743697239411,0.55572223,1785.6,1785.5,5.60067]
[1743697239611,3.7533,1785.7,1785.6,5.60035]
[1743697240610,3.42548751,1785.7,1785.6,5.60035]
[1743697241713,4.23438751,1785.7,1785.5,5.6005]
[1743697242216,4.23438751,1785.7,1785.6,5.60035]
[1743697242522,8.60622626,1785.7,1785.5,5.6005]
[1743697243158,5.24222626,1785.7,1785.5,11.20101]
[1743697243465,5.24222626,1785.7,1785.4,5.60094]
[1743697243617,3.364,1785.5,1785.3,5.60128]
[1743697243815,0.7865,1785.4,1785.3,5.60128]
[1743697245066,4.80392225,1785.6,1785.4,5.60077]
[1743697245270,6.14298237,1785.6,1785.4,5.60077]
[1743697245416,6.14298237,1785.6,1785.4,11.2016]
[1743697245618,1.33906012,1785.6,1785.5,5.60067]
[1743697245824,0.7546,1785.6,1785.5,5.60067]
[1743697246134,3.42548751,1785.7,1785.6,5.60035]
[1743697246315,0.7846,1786.0,1785.6,6.42875]
[1743697246520,6.01026855,1786.2,1786.0,5.5991]
[1743697246720,0.60102685,1786.1,1786.0,5.5991]
[1743697246959,0.60102685,1786.1,1785.9,5.59935]
[1743697247163,7.80392225,1786.1,1785.9,5.59926]
[1743697247347,1.2063463,1786.2,1786.1,5.59879]
[1743697247937,0.4217463,1786.2,1786.1,5.59879]
[1743697248142,5.63552225,1786.5,1786.1,5.59879]
[1743697248343,10.64692225,1786.6,1786.4,5.59785]
[1743697248562,16.24433225,1786.6,1786.2,5.59844]
[1743697248879,0.7973,1786.3,1786.1,5.59876]
[1743697249237,4.80392225,1786.2,1786.0,5.59908]
[1743697249433,3.0,1786.1,1785.6,5.6001]
[1743697249727,5.60122225,1786.0,1785.8,11.19916]
[1743697249956,5.60122225,1786.0,1785.8,11.19913]
[1743697250135,9.01,1786.1,1785.9,5.59941]
[1743697250329,9.01,1786.1,1786.0,5.5991]
[1743697250529,4.22055255,1786.2,1786.1,5.59879]
[1743697251163,5.22690781,1786.2,1786.0,5.5991]
[1743697251673,4.22055255,1786.2,1786.1,5.59879]
[1743697252843,3.42325255,1786.2,1786.1,5.59879]
[1743697253469,0.42325255,1786.2,1786.1,5.59879]
[1743697253781,9.38215,1786.5,1786.2,5.59845]
[1743697254074,4.80392225,1786.4,1786.2,5.59845]
[1743697254275,0.48039223,1786.3,1786.2,5.59845]
[1743697254477,3.84439223,1786.3,1786.2,5.59845]
[1743697254779,0.41352972,1786.5,1786.4,5.59785]
[1743697255276,40.302,1786.7,1786.5,5.59742]
[1743697255448,40.302,1786.7,1786.5,11.19479]
[1743697255656,3.0,1786.6,1786.5,5.59753]
[1743697257290,40.71515161,1786.7,1786.6,5.59722]
[1743697257491,40.302,1786.7,1786.6,5.59722]
[1743697257645,6.8015,1787.2,1787.1,5.59565]
[1743697257984,46.9752,1787.4,1787.2,5.5953]
[1743697258204,41.1342,1787.4,1787.3,5.59503]
[1743697258364,5.61312225,1787.7,1787.5,5.59424]
[1743697258559,0.56131223,1787.6,1787.5,5.59424]
[1743697258764,6.01,1787.8,1787.7,5.59377]
[1743697259480,6.01,1787.8,1787.6,11.18783]
[1743697259688,6.01,1787.8,1787.6,11.18782]
[1743697260199,6.01,1787.8,1787.7,5.59377]
[1743697260590,9.01,1787.8,1787.6,5.59385]
[1743697260902,9.01,1787.8,1787.7,5.59377]
[1743697261289,9.01,1787.8,1787.6,11.18775]
[1743697261768,9.01,1787.8,1787.7,5.59377]
[1743697262285,3.0,1787.8,1787.7,5.59377]
[1743697263227,3.0,1787.8,1787.6,5.59385]
[1743697263407,3.0,1787.8,1787.6,11.18779]
[1743697263571,3.0,1787.8,1787.7,5.59377]
[1743697263773,3.42461388,1787.8,1787.7,5.59377]
[1743697264002,3.42461388,1787.8,1787.6,5.59385]
[1743697264206,3.0,1787.7,1787.4,5.59467]
[1743697264506,3.0,1787.5,1787.2,5.5952]
[1743697264676,0.8131,1787.4,1787.2,5.5952]
[1743697264873,7.80392225,1787.3,1787.0,5.59592]
[1743697265073,8.99235247,1787.3,1787.1,5.59554]
[1743697265268,0.02914476,1787.2,1787.1,5.59554]
[1743697265674,0.02914476,1787.2,1786.9,5.59602]
[1743697265906,3.0,1787.1,1786.8,5.59651]
[1743697266073,3.0,1787.1,1787.0,5.59597]
[1743697266267,0.41898596,1787.3,1787.1,11.19086]
[1743697266473,8.22713085,1787.3,1787.0,5.59584]
[1743697266674,3.0,1787.2,1787.0,5.59584]
[1743697266874,3.0,1787.2,1786.9,5.59625]
[1743697267106,3.0,1787.2,1786.8,5.59659]
[1743697267107,4.80392225,1787.1,1786.8,5.59659]
[1743697267282,5.59792225,1786.9,1786.6,5.59712]
[1743697267483,4.80392225,1786.7,1786.4,5.59781]
[1743697267687,3.0,1786.6,1786.4,5.59781]
[1743697267888,3.02914476,1786.6,1786.4,11.19547]
[1743697268206,3.02914476,1786.6,1786.4,5.59766]
[1743697268407,10.40148225,1786.5,1786.1,5.59851]
[1743697268707,3.0,1786.6,1786.2,5.59835]
[1743697268896,0.02914476,1786.4,1786.3,5.59816]
[1743697270612,0.02914476,1786.4,1786.3,5.65413581]
[1743697270981,0.02914476,1786.4,1786.3,5.59816]
[1743697273498,4.76e-06,1786.4,1786.3,5.59816]
[1743697273702,3.0,1787.0,1786.9,5.59628]
[1743697273917,10.81392225,1787.1,1786.8,5.59655]
[1743697274097,16.40968225,1787.1,1786.7,11.1938]
[1743697274431,4.80392225,1786.9,1786.7,5.59674]
[1743697274597,4.80392225,1786.9,1786.8,5.59659]
[1743697274598,7.80392225,1786.9,1786.8,5.59659]
[1743697275292,8.2305521,1786.9,1786.8,5.59659]
[1743697275591,3.0,1786.9,1786.8,7.275601]
[1743697275796,3.0,1787.1,1787.0,5.59597]
[1743697276012,11.64352225,1787.4,1787.2,5.59512]
[1743697276186,11.64352225,1787.4,1787.2,11.19028]
[1743697276386,11.64352225,1787.4,1787.3,5.59503]
[1743697276714,6.01,1787.4,1787.3,5.59503]
[1743697277711,3.0,1787.4,1787.3,5.59503]
[1743697277907,10.64092225,1787.6,1787.4,5.59455]
[1743697278220,10.64092225,1787.6,1787.4,11.1891]
[1743697278418,4.80392225,1787.6,1787.4,11.1891]
[1743697278619,3.0,1787.5,1787.4,11.1891]